Cogmind - Beta 14 @@@ ROGUE MODE // 2025.04.25 @ 23:02:45 Player: Sunvar Result: Destroyed by EX-DEC with AWS/EX-DEC Performance ------------- Evolutions (1) 500 Regions Visited (5) 1000 Robots Destroyed (78) 390 Value Destroyed (1540) 1540 Prototype IDs (35) 700 Alien Tech Used (0) 0 Bonus (-1107) -1107 TOTAL SCORE: 3023 Bonus ------- High Alert Combat Kills 38 Aligned with FarCom 300 Friendly Fire -1445 Cogmind --------- Core Integrity 0/400 Matter 3/300 Energy 97/100 System Corruption 6% Temperature Cool (1) Movement Walking (120) Location -9/Exiles Parts ------- > --- POWER (1) -------- (None) > --- PROPULSION (3) --- Advanced Myomer Leg > --- UTILITY (3) ------ Salvage Targeting Computer Advanced Weapon Cycler > --- WEAPON (2) ------- (None) > --- INVENTORY (5) ---- Improved Ion Engine Autogun Autogun 8R-AWN's Boregun Hammer Peak State ------------ > --- POWER ------------ Reinforced Ion Engine > --- PROPULSION ------- Light Treads Light Treads Advanced Myomer Leg > --- UTILITY ---------- Experimental Heat Sink Gravity Neutralizer Salvage Targeting Computer > --- WEAPON ----------- Heavy Assault Rifle 8R-AWN's Boregun > --- INVENTORY -------- Heavy Assault Rifle Autogun Autogun Autogun Hammer [Rating: 39] Favorites ----------- Power Reinforced Ion Engine Engine Reinforced Ion Engine Propulsion Light Treads Treads Light Treads Leg Aluminum Leg Wheel Compact Wheel Flight Unit Improved Flight Unit Utility Light Armor Plating Device Structural Scanner Storage Huge Storage Unit Processor Salvage Targeting Computer Protection Light Armor Plating Weapon Heavy Assault Rifle Energy Gun Medium Laser Ballistic Gun Heavy Assault Rifle Ballistic Cannon Light Cannon Launcher YI-UF0's Doublenader Impact Weapon Hammer Build | -11 -10 -10 -9 -9 -9 ------- Run | Yrd Mat Min Mat Min Exi Slots Evolved 2 | . . . 2 . . Power . | . . . . . . Propulsion 1 | . . . 1 . . Utility 1 | . . . 1 . . Weapon . | . . . . . . Parts Attached 68 | . 10 5 32 . 21 Power 8 | . 1 . 6 . 1 Engine 8 | . 1 . 6 . 1 Core . | . . . . . . Reactor . | . . . . . . Propulsion 18 | . 4 . 8 . 6 Treads 12 | . 2 . 6 . 4 Leg 2 | . . . . . 2 Wheel 3 | . 2 . 1 . . Hover . | . . . . . . Flight 1 | . . . 1 . . Utility 16 | . 2 1 6 . 7 Device 4 | . 1 . . . 3 Storage 2 | . 1 . 1 . . Processor 1 | . . . 1 . . Hackware . | . . . . . . Protection 9 | . . 1 4 . 4 Artifact . | . . . . . . Weapon 26 | . 3 4 12 . 7 Energy Gun . | . . . . . . Energy Cannon . | . . . . . . Ballistic Gun 15 | . 2 3 4 . 6 Ballistic Cannon 4 | . 1 . 3 . . Launcher 3 | . . 1 2 . . Special Weapon . | . . . . . . Impact Weapon 4 | . . . 3 . 1 Slashing Weapon . | . . . . . . Piercing Weapon . | . . . . . . Special Melee Weapon . | . . . . . . Unidentified Prototypes 8 | . . 1 3 . 4 Parts Lost 18 | . 2 1 3 . 12 Power 3 | . 1 . 2 . . Propulsion 7 | . 1 . . . 6 Utility 7 | . . 1 1 . 5 Weapon 1 | . . . . . 1 Highest Loss Streak 7 | . 2 1 1 . 7 To Critical Strikes 5 | . . . . . 5 Average Slot Usage (%) 93 | . 97 100 99 100 84 Engine 11 | . 13 14 10 11 9 Treads 18 | . 10 14 21 22 20 Leg 1 | . 7 . . . 1 Wheel 8 | . 9 14 11 11 4 Device 4 | . 12 11 . . 3 Storage 9 | . 14 14 11 11 4 Processor 6 | . . . 7 11 11 Protection 9 | . . 2 14 11 9 Ballistic Gun 17 | . 16 20 15 22 19 Ballistic Cannon 3 | . 6 5 5 . . Peak Build Rating 39 | . 8 11 18 18 39 Average Rating 14 | . 7 8 15 18 16 On Entrance 10 | 6 6 8 9 18 18 Naked Turns . | . . . . . . Heaviest Build 102 | 13 31 33 102 96 96 Greatest Support 60 | 20 20 20 20 12 60 Greatest Overweight (x) 7 | . 2 2 7 7 7 Average Overweight (x) 3 | . 1 1 5 7 2 Largest Inventory Capacity 25 | . 15 15 25 25 25 Average Capacity 18 | . 13 15 24 25 13 Most Carried 25 | . 15 15 25 25 25 Average Carried 16 | . 11 14 23 25 11 Final Capacity 25 | 8 15 15 25 25 5 Final Carried 25 | 6 15 15 25 25 5 Class Distribution -------------------- 68% | Mutant 31% | Scavenger-Mutant Dominant Class ---------------- Mutant | -10/Materials Mutant | -10/Mines Mutant | -9/Materials Mutant | -9/Mines Mutant | -9/Exiles Resources | -11 -10 -10 -9 -9 -9 ----------- Run | Yrd Mat Min Mat Min Exi Matter Collected 1989 | 200 347 174 827 . 441 Remotely . | . . . . . . Salvage Created 2598 | . 638 218 1386 . 356 Parts 172 | . 45 17 81 . 29 Haulers Intercepted 6 | . 2 . 4 . . Recyclers Shooed 1 | . . . 1 . . Parts Field Recycled . | . . . . . . Retrieved Matter . | . . . . . . Parts Self-Destructed . | . . . . . . Prevented . | . . . . . . Kills | -11 -10 -10 -9 -9 -9 ------- Run | Yrd Mat Min Mat Min Exi Combat Hostiles Destroyed 56 | . 15 9 26 . 6 Guns 35 | . 13 4 12 . 6 Cannons 11 | . 2 2 7 . . AOE 10 | . . 3 7 . . Classes Destroyed 11 | . 5 . 4 . 2 Worker 1 | . . . 1 . . Hauler 6 | . 2 . 4 . . Recycler 4 | . 1 . 3 . . Operator 1 | . . . 1 . . Watcher 7 | . 3 . 4 . . Swarmer 21 | . 6 9 6 . . Grunt 20 | . 9 . 11 . . Brawler 2 | . . . 2 . . Sentry 7 | . . . 7 . . Zionite 6 | . . . . . 6 Assembled 5 | . . . . . 5 Best Kill Streak 10 | . 3 6 10 . 5 Combat Bots Only 8 | . 3 6 8 . 5 Max Kills in Single Turn 3 | . 1 3 3 . 1 Gunslinging . | . . . . . . Exploded 3 | . . 3 3 . . Melee . | . . . . . . Uniques/NPCs Destroyed 3 | . . 1 . . 2 YI-UF0 (-10/Mines) 8R-AWN (-9/Exiles) EX-HEX (-9/Exiles) Combat | -11 -10 -10 -9 -9 -9 -------- Run | Yrd Mat Min Mat Min Exi Hostile Shots Fired 328 | . 64 23 99 . 142 Missed 82 | . 19 8 28 . 27 Damage Taken 3453 | . 548 133 946 . 1826 Core 513 | . 68 34 111 . 300 Absorbed by Shields . | . . . . . . Regen/Repaired (Parts) 317 | . . . 317 . . Core Remaining (%) 79 | 100 . 59 . . . Volleys Fired 270 | . 58 33 101 . 78 Largest 2 | . 2 2 2 . 2 Hottest 93 | . 70 90 93 . 53 Shots Fired 527 | . 116 66 190 . 155 Gun 452 | . 102 56 139 . 155 Cannon 71 | . 14 9 48 . . Launcher 4 | . . 1 3 . . Special . | . . . . . . Kinetic 499 | . 92 65 187 . 155 Thermal 24 | . 24 . . . . Explosive 4 | . . 1 3 . . Electromagnetic . | . . . . . . Robot Hit Streak 27 | . 9 11 27 . 14 Robot Miss Streak 6 | . 6 2 4 . 6 Penetration Max . | . . . . . . Secondary Targets 2 | . . . . . 2 Max Gunslinging Chain 1 | . . . . . 1 Shots Hit Robots 364 | . 73 46 132 . 113 Core Hits 147 | . 34 17 60 . 36 Critical Kills 2 | . . . . . 2 Critical Parts Destroyed 4 | . . . 2 . 2 Critical Strikes 12 | . 3 . 4 . 5 Burn 3 | . 3 . . . . Destroy 7 | . . . 3 . 4 Blast 1 | . . . 1 . . Smash 1 | . . . . . 1 Melee Attacks 11 | . . . 5 . 6 Impact 11 | . . . 5 . 6 Slashing . | . . . . . . Piercing . | . . . . . . Sneak Attacks . | . . . . . . Combat Hostiles . | . . . . . . Follow-up Attacks . | . . . . . . Damage Inflicted 5432 | . 887 570 2176 . 1799 Guns 4031 | . 777 361 1242 . 1651 Cannons 762 | . 107 89 566 . . Explosions 480 | . . 120 360 . . Melee 137 | . . . . . 137 Ramming 22 | . 3 . 8 . 11 Kinetic 4592 | . 683 450 1808 . 1651 Thermal 201 | . 201 . . . . Explosive 480 | . . 120 360 . . Electromagnetic . | . . . . . . Impact 137 | . . . . . 137 Slashing . | . . . . . . Piercing . | . . . . . . Highest Corruption 6 | . 1 1 . . 6 Average Corruption 2 | . 1 1 . . 4 Corruption Purged . | . . . . . . Corruption Blocked . | . . . . . . Effects 18 | . 4 3 . . 11 Message Errors 7 | . . 2 . . 5 Matter Fused 3 | . 1 . . . 2 Heat Flow Errors 4 | . 2 1 . . 1 Data Loss (minor) 1 | . . . . . 1 Data Loss (major) 3 | . 1 . . . 2 Overload Shots . | . . . . . . Overflow Damage 53 | . . 2 11 . 40 Projectiles 5 | . . . 5 . . Explosions 8 | . . 2 6 . . Melee 40 | . . . . . 40 Knockbacks 9 | . 3 1 4 . 1 Impact 1 | . . . . . 1 Kinetic 7 | . 2 1 4 . . Secondary 1 | . 1 . . . . Self-Inflicted Damage 12 | . . 8 4 . . Shots 1 | . . 1 . . . Rammed 9 | . 1 . 1 . 7 Targets Rammed 9 | . 1 . 1 . 7 Kicked . | . . . . . . Crushed . | . . . . . . Highest Temperature 303 | . 248 267 303 . 173 Average Temperature 48 | . 48 87 52 . 27 Received Heat Transfer 591 | . 231 . 300 . 60 Effects 1 | . . . 1 . . Energy Bleed 1 | . . . 1 . . Siege Activations . | . . . . . . Robots Corrupted . | . . . . . . Combat Hostiles . | . . . . . . Parts Fried . | . . . . . . Impact Corruptions 7 | . . . . . 7 Robots Melted . | . . . . . . Combat Hostiles . | . . . . . . Parts Melted 2 | . 2 . . . . Heat Transferred 814 | . 814 . . . . Parts Sabotaged . | . . . . . . Parts Stolen . | . . . . . . Parts Stripped . | . . . . . . Power Chain Reactions . | . . . . . . Alert | -11 -10 -10 -9 -9 -9 ------- Run | Yrd Mat Min Mat Min Exi Peak Influence 466 | . 286 227 466 7 . Initial 72 | . . 72 39 7 . Average 153 | . 130 187 168 7 . Maximum Alert Level 2 | . 1 1 2 . . Low Security (%) 68 | . 91 29 62 100 . Level 1 26 | . 8 70 27 . . Level 2 5 | . . . 9 . . Level 3 . | . . . . . . Level 4 . | . . . . . . Level 5 . | . . . . . . High Security . | . . . . . . Max Security . | . . . . . . Squads Dispatched 5 | . 3 . 2 . . Investigation 3 | . 2 . 1 . . Extermination . | . . . . . . Reinforcement 2 | . 1 . 1 . . Assault . | . . . . . . Garrison . | . . . . . . Intercept . | . . . . . . Searches Triggered . | . . . . . . Construction Impeded . | . . . . . . Haulers Reinforced . | . . . . . . Active Scanning Responses . | . . . . . . Cargo Convoy Interrupts . | . . . . . . Stealth | -11 -10 -10 -9 -9 -9 --------- Run | Yrd Mat Min Mat Min Exi Distress Signals 5 | . 1 . 4 . . Communications Jammed . | . . . . . . Distress Signals . | . . . . . . Times Spotted 92 | . 23 10 37 . 22 Peak Tracking Total 9 | . 4 6 4 . 9 Tactical Retreats 14 | . 2 1 3 . 8 Traps | -11 -10 -10 -9 -9 -9 ------- Run | Yrd Mat Min Mat Min Exi Traps Triggered 4 | . 3 . 1 . . Indirectly . | . . . . . . Trap Hack Attempts . | . . . . . . Triggered . | . . . . . . Disarmed . | . . . . . . Reprogrammed . | . . . . . . Reused . | . . . . . . Traps Extracted . | . . . . . . Installed . | . . . . . . Triggered . | . . . . . . Machines | -11 -10 -10 -9 -9 -9 ---------- Run | Yrd Mat Min Mat Min Exi Machines Disabled 9 | . . . 1 . 8 Max in Single Turn 1 | . . . 1 . 1 Machines Repaired . | . . . . . . Machines Dismantled . | . . . . . . Machines Sabotaged . | . . . . . . Overloaded Fab Kills . | . . . . . . Hacking | -11 -10 -10 -9 -9 -9 --------- Run | Yrd Mat Min Mat Min Exi Machines Accessed 17 | . 5 . 10 . 2 Terminals 13 | . 5 . 8 . . Fabricators . | . . . . . . Repair Stations 2 | . . . 2 . . Recycling Units . | . . . . . . Scanalyzers . | . . . . . . Garrison Access . | . . . . . . Total Hacks 55 | . 17 . 36 . 2 Successful 32 | . 6 . 24 . 2 Failed 23 | . 11 . 12 . . Catastrophic 5 | . 3 . 2 . . Database Lockouts . | . . . . . . Manual 30 | . 15 . 14 . 1 Terminals 36 | . 17 . 19 . . Fabricators . | . . . . . . Repair Stations 17 | . . . 17 . . Recycling Units . | . . . . . . Scanalyzers . | . . . . . . Garrison Access . | . . . . . . Terminal Hacks 12 | . 4 . 6 . 2 Record 1 | . . . . . 1 Robot Analysis 4 | . 3 . 1 . . Prototype ID Bank 2 | . . . 2 . . Unreport Threat 2 | . . . 2 . . Hauler Manifests 2 | . 1 . 1 . . Derelict Proto ID Bank 1 | . . . . . 1 Fabricator Hacks . | . . . . . . Repair Station Hacks 14 | . . . 14 . . Scan Component 8 | . . . 8 . . Repair 6 | . . . 6 . . Recycling Unit Hacks . | . . . . . . Scanalyzer . | . . . . . . Garrison Access Hacks . | . . . . . . Unauthorized Hacks 6 | . 2 . 4 . . Terminals 6 | . 2 . 4 . . Botnet 5 | . 2 . 3 . . Operators 1 | . . . 1 . . Fabricators . | . . . . . . Repair Stations . | . . . . . . Recycling Units . | . . . . . . Scanalyzers . | . . . . . . Garrison Access . | . . . . . . Data Cores Recovered . | . . . . . . Used . | . . . . . . Hacking Detections 14 | . 5 . 9 . . Full Trace Events 2 | . 2 . . . . Feedback Events . | . . . . . . Feedback Blocked . | . . . . . . Robot Schematics Acquired . | . . . . . . Robots Built . | . . . . . . Authchips . | . . . . . . Time . | . . . . . . Total Robot Build Rating . | . . . . . . Part Schematics Acquired . | . . . . . . Parts Built . | . . . . . . Authchips . | . . . . . . Time . | . . . . . . Total Part Build Rating . | . . . . . . Parts Repaired 6 | . . . 6 . . Time 187 | . . . 187 . . Parts Recycled . | . . . . . . Recycled Matter . | . . . . . . Retrieved Matter . | . . . . . . Retrieved Components . | . . . . . . Parts Scanalyzed . | . . . . . . Part Schematics Acquired . | . . . . . . Parts Damaged . | . . . . . . Bothacking | -11 -10 -10 -9 -9 -9 ------------ Run | Yrd Mat Min Mat Min Exi Used RIF Installer . | . . . . . . Robots Hacked . | . . . . . . Non-combat . | . . . . . . Combat . | . . . . . . Robot Hacks Applied . | . . . . . . Relay Couplers Released . | . . . . . . Fabnet Peak Effective % . | . . . . . . Robots Rewired . | . . . . . . Allies Hacked . | . . . . . . Hacks Repelled . | . . . . . . Allies | -11 -10 -10 -9 -9 -9 -------- Run | Yrd Mat Min Mat Min Exi Total Allies 1 | . . . . 1 . Largest Group 1 | . . . . 1 1 Highest-Rated Group 31 | . . . . 31 31 Highest-Rated Ally 31 | . . . . 31 31 Total Orders . | . . . . . . Ally Attacks . | . . . . . . Total Damage . | . . . . . . Kills . | . . . . . . Allies Corrupted . | . . . . . . Allies Melted . | . . . . . . Intel | -11 -10 -10 -9 -9 -9 ------- Run | Yrd Mat Min Mat Min Exi Robot Analysis Total 4 | . 3 . 1 . . Derelict Logs Recovered 2 | . . 2 . . . Drone Launches . | . . . . . . Drone Recoveries . | . . . . . . Exploration | -11 -10 -10 -9 -9 -9 ------------- Run | Yrd Mat Min Mat Min Exi Turns Passed 6991 | . 1175 503 2633 205 2475 Spaces Moved 3636 | 1 800 321 1071 106 1337 Core 53 | . . . . . 53 Treads 567 | . 2 19 2 . 544 Legs 404 | 1 190 . . . 213 Wheels 2612 | . 608 302 1069 106 527 Hover . | . . . . . . Flight . | . . . . . . Fastest Speed 50 | 120 110 115 115 195 50 Average Speed 157 | 120 117 125 187 195 162 Slowest Speed 240 | 120 240 240 240 195 195 Overloaded Moves . | . . . . . . Propulsion Burnouts . | . . . . . . Robots Hopped . | . . . . . . Cave-ins Triggered . | . . . . . . Exploration Rate (%) 61 | 2 99 80 83 22 83 Regions Visited 5 Branch Regions 3 Pre-discovered Areas 1 | . . . . . 1 Known Exits Taken . | . . . . . . Unknown Exits Taken 5 | 1 1 1 1 1 . Scrap Searched 1 | . . 1 . . . Spaces Dug 3 | . . . 3 . . Terrain Destroyed 27 | . . 14 13 . . Melee 3 | . . . 3 . . Projectile . | . . . . . . AOE 24 | . . 14 10 . . Terrain Rammed . | . . . . . . Walls Destroyed . | . . . . . . Machines Disabled . | . . . . . . Actions | -11 -10 -10 -9 -9 -9 --------- Run | Yrd Mat Min Mat Min Exi Total 4438 | . 923 367 1519 105 1524 Wait 299 | . 35 1 244 . 19 Move 3631 | . 799 320 1070 105 1337 Hop . | . . . . . . Pick Up 67 | . 15 4 35 . 13 Fast Attach 25 | . 1 1 8 . 15 Attach 12 | . 2 1 6 . 3 Detach 5 | . . . 4 . 1 Swap 31 | . 7 3 18 . 3 Drop 78 | . 5 4 27 . 42 Fire 270 | . 58 33 101 . 78 Melee 11 | . . . 5 . 6 Ram 1 | . . . 1 . . Kick . | . . . . . . Crush 8 | . 1 . . . 7 Escape Stasis . | . . . . . . Rewire . | . . . . . . Trap . | . . . . . . Miscellaneous . | . . . . . . Route ------- -11/Scrapyard -10/Materials (discovered 6 exits: *Mat x3 / [*Min x2] / [Sub]) -10/Mines (discovered 2 exits: *Mat x2) -9/Materials (discovered 4 exits: *Mat x3 / [*Min]) -9/Mines -9/Exiles (discovered 2 exits: [*Min x2]) History --------- Turn | Location | Event 1 | -11/Scrapyard | Discovered new exit (range 0) 1 | -11/Scrapyard | Entered Materials 131 | -10/Materials | Discovered new exit (range 16) 315 | -10/Materials | Build established: Mutant 315 | -10/Materials | Discovered new exit (range 15) 492 | -10/Materials | Discovered new exit (range 6) 636 | -10/Materials | Discovered new exit (range 12) 801 | -10/Materials | Discovered new exit (range 16) 833 | -10/Materials | Discovered new exit (range 11) 1176 | -10/Materials | Entered Mines 1291 | -10/Mines | Learned 2 Materials zone layouts 1360 | -10/Mines | Discovered new exit (range 9) 1373 | -10/Mines | YI-UF0 nonchalantly dropped a Grenade Launcher on the ground 1488 | -10/Mines | Murdered YI-UF0 1502 | -10/Mines | Found Prototype Launcher 1503 | -10/Mines | Identified YI-UF0's Doublenader 1653 | -10/Mines | Learned Materials non-interactive machine intel 1668 | -10/Mines | Discovered new exit (range 7) 1679 | -10/Mines | Entered Materials 1679 | -9/Materials | Evolved 2 slots: Propulsion x1, Utility x1 1680 | -9/Materials | Identified exit to Materials 1681 | -9/Materials | Loaded intel: 45 non-interactive machine locations 2067 | -9/Materials | Discovered exit to Materials (range 9) 2081 | -9/Materials | Destroyed 8 combat bots 2219 | -9/Materials | Discovered new exit (range 14) 2714 | -9/Materials | Discovered exit to Materials (range 3) 3092 | -9/Materials | Build established: Scavenger-Mutant 3780 | -9/Materials | Repaired Lgt. Armor Plating 3817 | -9/Materials | Repaired Lgt. Armor Plating 3844 | -9/Materials | Repaired Lgt. Armor Plating 3896 | -9/Materials | Repaired Imp. Assault Rifle 4060 | -9/Materials | Repaired Rnf. Ion Engine 4084 | -9/Materials | Build established: Mutant 4090 | -9/Materials | Repaired Lgt. Treads 4312 | -9/Materials | Entered Mines 4378 | -9/Mines | Received a Mining Laser from a helpful Derelict 4509 | -9/Mines | Deemed a non-threat by the Exiles lab entrance 4509 | -9/Mines | Discovered new exit (range 5) 4517 | -9/Mines | Entered Exiles 4517 | -9/Exiles | Accompanied by 1 ally 4562 | -9/Exiles | Met 8R-AWN 4597 | -9/Exiles | Met EX-HEX 4652 | -9/Exiles | Met EX-BIN 4709 | -9/Exiles | Met EX-DEC 4716 | -9/Exiles | Learned location of Zion (-6) 4798 | -9/Exiles | Discovered new exit (range 10) 5204 | -9/Exiles | Aligned with FarCom system 5206 | -9/Exiles | Given EX-Vault access code 5251 | -9/Exiles | Opened EX-Vault 5262 | -9/Exiles | Found Firepult 5301 | -9/Exiles | Warned to stay clear of 0b10 Research branches 5791 | -9/Exiles | Build established: Scavenger-Mutant 5860 | -9/Exiles | Attacked by the Exiles 6027 | -9/Exiles | Core integrity fell below 50% 6065 | -9/Exiles | Lost 7 parts (3n3u1w) 6098 | -9/Exiles | Destroyed 8R-AWN 6114 | -9/Exiles | Lost 3 parts (1n2u) 6118 | -9/Exiles | Found Prototype Ballistic Gun 6118 | -9/Exiles | Identified 8R-AWN's Boregun 6382 | -9/Exiles | Destroyed EX-HEX 6712 | -9/Exiles | Core integrity fell below 20% 6873 | -9/Exiles | Discovered new exit (range 14) 6992 | -9/Exiles | Destroyed by EX-DEC with AWS/EX-DEC Last Messages --------------- 06691_ XMDP%ZLES X1RZFQFXLWXEQF,%NUIUBLBK#QYRBV 06701_ Destroyed Mak. Hover Unit. 06705_ Machine disabled. 06710_ Slammed into EX-BIN. 06710_ Destroyed EX Chip 1. 06710_ Destroyed EX Chip 2. 06710_ EX-BIN system corrupted by crushing effect. 06712_ Slammed into EX-BIN. 06713_ System corrupted: Substantial component data lost. 06713_ Lgt. Treads destroyed. 06714_ Dropped Rnf. Ion Engine. 06714_ Dropped Autogun. 06715_ Dropped Hvy. Assault Rifle. 06742_ Acquired Adv. Myomer Leg. 06805_ 1IDD| >6YADO,XCNP>Y37TPRV6| 06820_ System corrupted: Component data lost. 06857_ WO:ZRT5XU D,CWRVYU,>O 06873_ EXIT=FOUND 06927_ System corrupted: Heat flow error (+200). 06970_ F#I#R9>8CRT|4GQP9YFDATRX5W>XYDB> Map ----- +----------------------------------------------------+ | ????????????# """ | | ????????????## | | ?????????????#" " "" | | ?????????????#"""" ""## ##""" " " | | ?????????????#"" ""#### ######""" " | | ?????????????#" """"##??# #????###""" | | ?????????????#""" """#??## ####???#### | | ?????????????## ""##??#! " #??????? | | ??????????????#"" """##???#" !#??????? | | ??????????????##""" ##????#" "#??????? | | ???????????????##"""" ##?????#!!""!"#??????? | | ????????????????### #??????########??????? | | ??????????????????##### ##????????????????????? | | ??????????????????????## #?????????????????????? | | ???????????????????????# #?????????????????????? | | ???????????????????????# #?????????????????????? | | ???????????????????????# #?????????????????????? | | ???????????????????????# #?????????????????????? | | ????????????#""""??????# #?????????????????????? | | ????????????#""""""????# ! #?????????????????????? | | ????????????#" """????#! #?????????????????????? | | ????????????#"" ""????#* #?????????????????????? | | ?????????????"" "????# #?????????????????????? | | ???????########"""###### = ########??????????????? | | ???" ?"""""" " """"" """""""#??????????????? | | ??" ! """"" !!! * !@ "#??????????????? | | ?? =%! !! !=[*! " "??????????? | | ?? * zc*!! [ " " "?????????? | | ?? ! " ""??????????? | | ?? " #"" "??????????? | | ?? """"" " """" """""#??????????????? | | ???#"""###""###"""########"""######??????????????? | | ??????????"??"" ""?????" ""??????????????????? | | ????????????#""" ""#????" """??????????????????? | | ????????????#" " "#????""""""??????????????????? | | ????????????#"""""""#????" """???????????????????? | | ????????????#"""""""#????"""?????????????????????? | | ??????????????######?????????????????????????????? | | ?????????????????????????????????????????????????? | | ?????????????????????????????????????????????????? | | ?????????????????????????????????????????????????? | | ?????????????????????????????????????????????????? | | | | | | | | | | | | | | | | | +----------------------------------------------------+ Best States ------------- Heat Dissipation 54 Energy Generation 12 Energy Capacity 265 Matter Stores 300 Matter Capacity 300 Sight Range 16 Terrain Scan Density 10 Additional Mass Support 12 Armor Coverage 300 Weapon Cycling 25 Evasion (%) 55 Recoil Reduction 3 Salvage Targeting 1 Item Schematics ----------------- None Robot Schematics ------------------ None Fabricated ------------ Nothing Alien Tech Used ----------------- None Achievements -------------- None Challenges ------------ None Game ------ Seed GuidedMassChip Manual? 0 Play Time 00:59:48 Cumulative 128.6 hours Start 2025.04.25 @ 19:22:38 End 2025.04.25 @ 23:02:45 Sessions 3 Manual Loads 0 Difficulty Rogue Special Mode None Game No. 89 Rogue 89 Adventurer 0 Explorer 0 Win Type - Total 5 Types 4/0/1/0/0/0/0/0/0 Lore% 50 Gallery% 60 Achievement% 51 Wizard Run 0 Options --------- Layout 0 ASCII 0 Keyboard 1 Movement Numpad Keybinds 0 Fullscreen 1 Font 36/Proggy Map View 76x50 Zoom Use 0% Tactical HUD 1 Map Filters NONE Filters NONE Steam 1 RUN: c43a7c8d-9702-47f8-a4cb-5cb774132434